[Event "Titled Tuesday Blitz May 4 2021"]
[White "Manukian, Artak"]
[Black "Sviridova, Vlada"]
[WhiteFideId "13301373"]
[BlackFideId "24109606"]
[WhiteElo "2465"]
[BlackElo "2101"]
[Result "1-0"]
[Round "02"]
[TimeControl "180+1"]
[Date "2021.05.04"]
[WhiteClock "0:00:16"]
[BlackClock "0:00:08"]

1. e4 {[%clk 0:03:00]}  e6 {[%clk 0:03:00]} 2. d4 {[%clk 0:02:59]}  d5 {[%clk 0:03:00]} 3. e5 {[%clk 0:02:58]}  c5 {[%clk 0:03:00]} 4. c3 {[%clk 0:02:58]}  Qb6 {[%clk 0:03:01]} 5. Nf3 {[%clk 0:02:58]}  Nc6 {[%clk 0:03:00]} 6. a3 {[%clk 0:02:58]}  c4 {[%clk 0:03:00]} 7. Nbd2 {[%clk 0:02:57]}  Na5 {[%clk 0:03:00]} 8. Rb1 {[%clk 0:02:57]}  Bd7 {[%clk 0:03:00]} 9. g3 {[%clk 0:02:53]}  Ne7 {[%clk 0:02:58]} 10. Bh3 {[%clk 0:02:52]}  Qc7 {[%clk 0:02:56]} 11. O-O {[%clk 0:02:51]}  Nc8 {[%clk 0:02:55]} 12. Nh4 {[%clk 0:02:51]}  g5 {[%clk 0:02:47]} 13. Ng2 {[%clk 0:02:50]}  h5 {[%clk 0:02:39]} 14. Ne1 {[%clk 0:02:44]}  g4 {[%clk 0:02:31]} 15. Bg2 {[%clk 0:02:43]}  Nb6 {[%clk 0:02:29]} 16. f4 {[%clk 0:02:42]}  O-O-O {[%clk 0:02:02]} 17. Rf2 {[%clk 0:02:20]}  Be7 {[%clk 0:01:58]} 18. Nf1 {[%clk 0:02:15]}  h4 {[%clk 0:01:18]} 19. Qxg4 {[%clk 0:02:03]}  Rdg8 {[%clk 0:01:16]} 20. Qe2 {[%clk 0:01:56]}  hxg3 {[%clk 0:01:06]} 21. hxg3 {[%clk 0:01:55]}  Qd8 {[%clk 0:00:57]} 22. Nf3 {[%clk 0:01:48]}  Qf8 {[%clk 0:00:52]} 23. Ng5 {[%clk 0:01:40]}  Qg7 {[%clk 0:00:41]} 24. Nh2 {[%clk 0:01:37]}  Bxg5 {[%clk 0:00:37]} 25. fxg5 {[%clk 0:01:36]}  Qh7 {[%clk 0:00:37]} 26. g6 {[%clk 0:01:18]}  Qxh2+ {[%clk 0:00:36]} 27. Kf1 {[%clk 0:01:17]}  Rxg6 {[%clk 0:00:33]} 28. Bf4 {[%clk 0:01:17]}  Rhg8 {[%clk 0:00:24]} 29. Qf3 {[%clk 0:01:12]}  Qh7 {[%clk 0:00:23]} 30. Re1 {[%clk 0:01:11]}  Nb3 {[%clk 0:00:20]} 31. Kg1 {[%clk 0:01:09]}  Na5 {[%clk 0:00:19]} 32. Be3 {[%clk 0:01:08]}  R8g7 {[%clk 0:00:18]} 33. Bf4 {[%clk 0:01:03]}  Nc6 {[%clk 0:00:18]} 34. Qd1 {[%clk 0:00:58]}  Ne7 {[%clk 0:00:18]} 35. Bf3 {[%clk 0:00:52]}  Nf5 {[%clk 0:00:17]} 36. Rh2 {[%clk 0:00:47]}  Qg8 {[%clk 0:00:16]} 37. Kh1 {[%clk 0:00:45]}  Nxg3+ {[%clk 0:00:15]} 38. Bxg3 {[%clk 0:00:45]}  Rxg3 {[%clk 0:00:16]} 39. Rf1 {[%clk 0:00:24]}  Ba4 {[%clk 0:00:15]} 40. Qe1 {[%clk 0:00:23]}  Rh7 {[%clk 0:00:12]} 41. Qxg3 {[%clk 0:00:19]}  Qxg3 {[%clk 0:00:12]} 42. Rxh7 {[%clk 0:00:20]}  Bc2 {[%clk 0:00:12]} 43. Rxf7 {[%clk 0:00:18]}  Be4 {[%clk 0:00:11]} 44. Bxe4 {[%clk 0:00:18]}  Qh3+ {[%clk 0:00:09]} 45. Kg1 {[%clk 0:00:17]}  dxe4 {[%clk 0:00:09]} 46. Rg7 {[%clk 0:00:16]}  e3 {[%clk 0:00:08]} 47. Rf8# {[%clk 0:00:16]} 1-0


[Site "https://www.chess.com"]

[Event "Titled Tuesday Blitz May 4 2021"]
[White "Maranhao,Jose Renato Ruiz"]
[Black "Todorovic, Bojan"]
[WhiteFideId "2135175"]
[BlackFideId "917087"]
[WhiteElo "1970"]
[BlackElo "2266"]
[Result "0-1"]
[Round "02"]
[TimeControl "180+1"]
[Date "2021.05.04"]
[WhiteClock "0:00:14"]
[BlackClock "0:01:11"]

1. e4 {[%clk 0:03:00]}  g6 {[%clk 0:02:58]} 2. d4 {[%clk 0:03:00]}  Bg7 {[%clk 0:02:57]} 3. Nc3 {[%clk 0:03:00]}  d6 {[%clk 0:02:57]} 4. f4 {[%clk 0:03:01]}  a6 {[%clk 0:02:56]} 5. Nf3 {[%clk 0:03:01]}  Nd7 {[%clk 0:02:54]} 6. Bd3 {[%clk 0:02:53]}  b5 {[%clk 0:02:53]} 7. a3 {[%clk 0:02:49]}  Bb7 {[%clk 0:02:53]} 8. h4 {[%clk 0:02:48]}  c5 {[%clk 0:02:40]} 9. dxc5 {[%clk 0:02:31]}  Nxc5 {[%clk 0:02:39]} 10. h5 {[%clk 0:02:28]}  Bxc3+ {[%clk 0:02:21]} 11. bxc3 {[%clk 0:02:27]}  Bxe4 {[%clk 0:02:14]} 12. Bxe4 {[%clk 0:01:48]}  Nxe4 {[%clk 0:02:13]} 13. hxg6 {[%clk 0:01:47]}  fxg6 {[%clk 0:02:12]} 14. Qd4 {[%clk 0:01:05]}  Ngf6 {[%clk 0:02:10]} 15. Ng5 {[%clk 0:00:56]}  Qc8 {[%clk 0:01:50]} 16. Bb2 {[%clk 0:00:36]}  Qc4 {[%clk 0:01:41]} 17. O-O-O {[%clk 0:00:19]}  Qxd4 {[%clk 0:01:34]} 18. cxd4 {[%clk 0:00:19]}  Nxg5 {[%clk 0:01:31]} 19. fxg5 {[%clk 0:00:20]}  Nd5 {[%clk 0:01:31]} 20. Rh6 {[%clk 0:00:19]}  O-O {[%clk 0:01:29]} 21. Rdh1 {[%clk 0:00:18]}  Rf7 {[%clk 0:01:29]} 22. Kd2 {[%clk 0:00:18]}  Rc8 {[%clk 0:01:27]} 23. R6h3 {[%clk 0:00:16]}  Rf2+ {[%clk 0:01:21]} 24. Kd3 {[%clk 0:00:16]}  Nf4+ {[%clk 0:01:19]} 25. Ke4 {[%clk 0:00:16]}  Nxh3 {[%clk 0:01:16]} 26. gxh3 {[%clk 0:00:16]}  Rfxc2 {[%clk 0:01:12]} 27. Ba1 {[%clk 0:00:13]}  Rc1 {[%clk 0:01:11]} 28. Rxc1 {[%clk 0:00:14]}  Rxc1 {[%clk 0:01:11]} 29. Bb2 {[%clk 0:00:14]}  Rc2 {[%clk 0:01:11]} 0-1


[Site "https://www.chess.com"]

[Event "Titled Tuesday Blitz May 4 2021"]
[White "Markidis, Konstantinos"]
[Black "Niyazgulova, Marina"]
[WhiteFideId "4203500"]
[BlackFideId "24142573"]
[WhiteElo "2304"]
[BlackElo "2087"]
[Result "1/2-1/2"]
[Round "02"]
[TimeControl "180+1"]
[Date "2021.05.04"]
[WhiteClock "0:00:21"]
[BlackClock "0:00:18"]

1. e4 {[%clk 0:03:00]}  d5 {[%clk 0:02:59]} 2. exd5 {[%clk 0:03:00]}  Qxd5 {[%clk 0:02:58]} 3. Nc3 {[%clk 0:03:00]}  Qd6 {[%clk 0:02:58]} 4. d4 {[%clk 0:03:00]}  Nf6 {[%clk 0:02:58]} 5. Nf3 {[%clk 0:03:01]}  c6 {[%clk 0:02:58]} 6. h3 {[%clk 0:03:00]}  Bf5 {[%clk 0:02:56]} 7. Ne5 {[%clk 0:02:56]}  Nbd7 {[%clk 0:02:52]} 8. Nc4 {[%clk 0:02:57]}  Qc7 {[%clk 0:02:50]} 9. Qf3 {[%clk 0:02:57]}  Be6 {[%clk 0:02:14]} 10. Bf4 {[%clk 0:02:57]}  Qd8 {[%clk 0:02:12]} 11. O-O-O {[%clk 0:02:57]}  Nb6 {[%clk 0:02:12]} 12. Ne5 {[%clk 0:02:32]}  Nbd5 {[%clk 0:02:09]} 13. Bd2 {[%clk 0:02:31]}  g6 {[%clk 0:02:04]} 14. Bc4 {[%clk 0:02:12]}  Bg7 {[%clk 0:01:56]} 15. g4 {[%clk 0:01:59]}  Nd7 {[%clk 0:01:17]} 16. Rhe1 {[%clk 0:01:47]}  Nxe5 {[%clk 0:01:15]} 17. dxe5 {[%clk 0:01:47]}  Nxc3 {[%clk 0:00:56]} 18. Bxc3 {[%clk 0:01:33]}  Qc8 {[%clk 0:00:52]} 19. Qe4 {[%clk 0:01:33]}  Bxc4 {[%clk 0:00:46]} 20. Qxc4 {[%clk 0:01:33]}  Qe6 {[%clk 0:00:40]} 21. Qxe6 {[%clk 0:01:07]}  fxe6 {[%clk 0:00:40]} 22. f4 {[%clk 0:01:07]}  Rd8 {[%clk 0:00:39]} 23. g5 {[%clk 0:01:05]}  O-O {[%clk 0:00:39]} 24. Rxd8 {[%clk 0:01:00]}  Rxd8 {[%clk 0:00:39]} 25. Rd1 {[%clk 0:01:01]}  Rxd1+ {[%clk 0:00:37]} 26. Kxd1 {[%clk 0:01:01]}  Kf8 {[%clk 0:00:36]} 27. a4 {[%clk 0:00:54]}  b6 {[%clk 0:00:33]} 28. Kd2 {[%clk 0:00:49]}  Ke8 {[%clk 0:00:34]} 29. Kd3 {[%clk 0:00:49]}  Kd7 {[%clk 0:00:34]} 30. Kc4 {[%clk 0:00:50]}  Kc7 {[%clk 0:00:34]} 31. Bd4 {[%clk 0:00:49]}  Kb7 {[%clk 0:00:33]} 32. Be3 {[%clk 0:00:40]}  h5 {[%clk 0:00:33]} 33. h4 {[%clk 0:00:38]}  Bf8 {[%clk 0:00:29]} 34. Kb4 {[%clk 0:00:35]}  Bg7 {[%clk 0:00:29]} 35. a5 {[%clk 0:00:35]}  Bf8 {[%clk 0:00:29]} 36. axb6 {[%clk 0:00:31]}  axb6 {[%clk 0:00:29]} 37. c4 {[%clk 0:00:32]}  Bg7 {[%clk 0:00:29]} 38. c5 {[%clk 0:00:30]}  b5 {[%clk 0:00:29]} 39. Ka5 {[%clk 0:00:28]}  Bf8 {[%clk 0:00:28]} 40. Bd4 {[%clk 0:00:28]}  Bg7 {[%clk 0:00:29]} 41. Kb4 {[%clk 0:00:27]}  Bf8 {[%clk 0:00:29]} 42. Kc3 {[%clk 0:00:26]}  Bg7 {[%clk 0:00:29]} 43. Kd3 {[%clk 0:00:26]}  Bf8 {[%clk 0:00:28]} 44. Bc3 {[%clk 0:00:26]}  Bg7 {[%clk 0:00:27]} 45. Ba5 {[%clk 0:00:27]}  Kc8 {[%clk 0:00:21]} 46. Kc3 {[%clk 0:00:27]}  Bf8 {[%clk 0:00:20]} 47. Bb6 {[%clk 0:00:27]}  Kb7 {[%clk 0:00:20]} 48. Kb4 {[%clk 0:00:27]}  Ka6 {[%clk 0:00:20]} 49. Bd8 {[%clk 0:00:27]}  Kb7 {[%clk 0:00:20]} 50. Ka5 {[%clk 0:00:27]}  Ka7 {[%clk 0:00:20]} 51. Bc7 {[%clk 0:00:24]}  Kb7 {[%clk 0:00:20]} 52. Bb6 {[%clk 0:00:23]}  Bg7 {[%clk 0:00:20]} 53. Bd8 {[%clk 0:00:23]}  Bf8 {[%clk 0:00:20]} 54. Bb6 {[%clk 0:00:21]}  Bg7 {[%clk 0:00:20]} 55. b3 {[%clk 0:00:21]}  Bf8 {[%clk 0:00:19]} 56. Kb4 {[%clk 0:00:20]}  Bg7 {[%clk 0:00:18]} 57. Ka5 {[%clk 0:00:20]}  Bf8 {[%clk 0:00:18]} 58. Kb4 {[%clk 0:00:21]}  Bg7 {[%clk 0:00:18]} 59. Ka5 {[%clk 0:00:21]} 1/2-1/2


[Site "https://www.chess.com"]

[Event "Titled Tuesday Blitz May 4 2021"]
[White "Martinez Lopez, David"]
[Black "Korchmar, Vasiliy"]
[WhiteFideId "22235779"]
[BlackFideId "24131750"]
[WhiteElo "2357"]
[BlackElo "2370"]
[Result "1-0"]
[Round "02"]
[TimeControl "180+1"]
[Date "2021.05.04"]
[WhiteClock "0:00:48"]
[BlackClock "0:01:34"]

1. e4 {[%clk 0:03:00]}  c5 {[%clk 0:02:59]} 2. Nf3 {[%clk 0:03:00]}  d6 {[%clk 0:03:00]} 3. d4 {[%clk 0:03:01]}  cxd4 {[%clk 0:03:01]} 4. Nxd4 {[%clk 0:03:01]}  Nf6 {[%clk 0:03:02]} 5. Nc3 {[%clk 0:03:02]}  Nc6 {[%clk 0:03:02]} 6. Be2 {[%clk 0:03:00]}  e5 {[%clk 0:03:02]} 7. Nf3 {[%clk 0:03:00]}  h6 {[%clk 0:03:02]} 8. h3 {[%clk 0:03:00]}  Be7 {[%clk 0:03:02]} 9. O-O {[%clk 0:03:00]}  O-O {[%clk 0:03:03]} 10. Re1 {[%clk 0:03:01]}  Be6 {[%clk 0:03:02]} 11. Bf1 {[%clk 0:03:01]}  Rc8 {[%clk 0:02:54]} 12. b3 {[%clk 0:02:59]}  Nb4 {[%clk 0:02:43]} 13. Bb2 {[%clk 0:02:58]}  d5 {[%clk 0:02:43]} 14. exd5 {[%clk 0:02:52]}  Nfxd5 {[%clk 0:02:44]} 15. Nxd5 {[%clk 0:02:51]}  Bxd5 {[%clk 0:02:44]} 16. c3 {[%clk 0:02:35]}  Bxf3 {[%clk 0:02:44]} 17. Qxd8 {[%clk 0:02:29]}  Rfxd8 {[%clk 0:02:42]} 18. cxb4 {[%clk 0:02:29]}  Bd5 {[%clk 0:02:35]} 19. Bxe5 {[%clk 0:02:23]}  Bxb4 {[%clk 0:02:36]} 20. Red1 {[%clk 0:02:03]}  f6 {[%clk 0:02:35]} 21. Bd4 {[%clk 0:01:58]}  a6 {[%clk 0:02:27]} 22. Be3 {[%clk 0:01:29]}  Bf7 {[%clk 0:02:20]} 23. Bd3 {[%clk 0:01:18]}  Bc3 {[%clk 0:01:54]} 24. Rac1 {[%clk 0:01:15]}  Bb2 {[%clk 0:01:53]} 25. Rxc8 {[%clk 0:01:01]}  Rxc8 {[%clk 0:01:54]} 26. Be4 {[%clk 0:01:01]}  b5 {[%clk 0:01:43]} 27. Bb7 {[%clk 0:00:55]}  Rc2 {[%clk 0:01:33]} 28. Rd8+ {[%clk 0:00:50]}  Kh7 {[%clk 0:01:32]} 29. Be4+ {[%clk 0:00:50]}  Bg6 {[%clk 0:01:33]} 30. Bxc2 {[%clk 0:00:48]}  Bxc2 {[%clk 0:01:34]} 31. Rd2 {[%clk 0:00:48]} 1-0


[Site "https://www.chess.com"]

[Event "Titled Tuesday Blitz May 4 2021"]
[White "Matinian, Nikita"]
[Black "Napoli, Nicolo"]
[WhiteFideId "24129100"]
[BlackFideId "813702"]
[WhiteElo "2410"]
[BlackElo "2330"]
[Result "1-0"]
[Round "02"]
[TimeControl "180+1"]
[Date "2021.05.04"]
[WhiteClock "0:00:08"]
[BlackClock "0:00:08"]

1. Nf3 {[%clk 0:03:00]}  g6 {[%clk 0:02:57]} 2. e4 {[%clk 0:03:00]}  Bg7 {[%clk 0:02:58]} 3. d4 {[%clk 0:03:00]}  c6 {[%clk 0:02:57]} 4. Nc3 {[%clk 0:02:59]}  d5 {[%clk 0:02:56]} 5. h3 {[%clk 0:02:59]}  Nh6 {[%clk 0:02:56]} 6. e5 {[%clk 0:02:42]}  f6 {[%clk 0:02:53]} 7. Bd3 {[%clk 0:02:40]}  Nf7 {[%clk 0:02:52]} 8. Bf4 {[%clk 0:02:36]}  O-O {[%clk 0:02:47]} 9. Qd2 {[%clk 0:02:36]}  fxe5 {[%clk 0:02:25]} 10. Nxe5 {[%clk 0:02:35]}  Nxe5 {[%clk 0:02:21]} 11. Bxe5 {[%clk 0:02:36]}  Bxe5 {[%clk 0:02:17]} 12. dxe5 {[%clk 0:02:37]}  Bf5 {[%clk 0:02:14]} 13. Bxf5 {[%clk 0:02:34]}  Rxf5 {[%clk 0:02:15]} 14. f4 {[%clk 0:02:35]}  e6 {[%clk 0:02:06]} 15. O-O-O {[%clk 0:02:34]}  Nd7 {[%clk 0:02:00]} 16. g4 {[%clk 0:02:34]}  Rf7 {[%clk 0:01:59]} 17. h4 {[%clk 0:02:17]}  Qf8 {[%clk 0:01:50]} 18. Ne2 {[%clk 0:02:14]}  Nc5 {[%clk 0:01:41]} 19. h5 {[%clk 0:02:12]}  Ne4 {[%clk 0:01:39]} 20. Qe3 {[%clk 0:01:59]}  g5 {[%clk 0:01:34]} 21. f5 {[%clk 0:00:57]}  exf5 {[%clk 0:01:29]} 22. e6 {[%clk 0:00:58]}  Rf6 {[%clk 0:01:24]} 23. gxf5 {[%clk 0:00:58]}  Re8 {[%clk 0:01:13]} 24. Nd4 {[%clk 0:00:42]}  c5 {[%clk 0:01:06]} 25. Nb5 {[%clk 0:00:42]}  Rxf5 {[%clk 0:01:06]} 26. Nc7 {[%clk 0:00:36]}  Rf3 {[%clk 0:00:47]} 27. Qe2 {[%clk 0:00:25]}  Rf2 {[%clk 0:00:38]} 28. Qb5 {[%clk 0:00:22]}  Re7 {[%clk 0:00:22]} 29. Nxd5 {[%clk 0:00:22]}  Rxe6 {[%clk 0:00:21]} 30. Qxb7 {[%clk 0:00:22]}  Kh8 {[%clk 0:00:14]} 31. h6 {[%clk 0:00:20]}  Rxh6 {[%clk 0:00:13]} 32. Rxh6 {[%clk 0:00:20]}  Qxh6 {[%clk 0:00:14]} 33. Qb8+ {[%clk 0:00:14]}  Rf8 {[%clk 0:00:13]} 34. Qe5+ {[%clk 0:00:13]}  Qg7 {[%clk 0:00:12]} 35. Qxe4 {[%clk 0:00:11]}  Qf7 {[%clk 0:00:10]} 36. Qe5+ {[%clk 0:00:08]}  Kg8 {[%clk 0:00:10]} 37. Ne7+ {[%clk 0:00:07]}  Qxe7 {[%clk 0:00:07]} 38. Qxe7 {[%clk 0:00:08]}  Rf7 {[%clk 0:00:07]} 39. Rd8+ {[%clk 0:00:07]}  Kg7 {[%clk 0:00:08]} 40. Qxg5# {[%clk 0:00:08]} 1-0


[Site "https://www.chess.com"]

[Event "Titled Tuesday Blitz May 4 2021"]
[White "Matveeva, Olga"]
[Black "Noboa Silva, Kevin"]
[WhiteFideId "24107018"]
[BlackFideId "3618471"]
[WhiteElo "2108"]
[BlackElo "2161"]
[Result "0-1"]
[Round "02"]
[TimeControl "180+1"]
[Date "2021.05.04"]
[WhiteClock "0:00:03"]
[BlackClock "0:00:18"]

1. d4 {[%clk 0:03:00]}  Nf6 {[%clk 0:02:55]} 2. c4 {[%clk 0:03:00]}  g6 {[%clk 0:02:55]} 3. g3 {[%clk 0:02:59]}  Bg7 {[%clk 0:02:54]} 4. Bg2 {[%clk 0:02:59]}  d5 {[%clk 0:02:54]} 5. cxd5 {[%clk 0:02:57]}  Nxd5 {[%clk 0:02:55]} 6. Nf3 {[%clk 0:02:56]}  O-O {[%clk 0:02:53]} 7. O-O {[%clk 0:02:56]}  c5 {[%clk 0:02:50]} 8. dxc5 {[%clk 0:02:53]}  Na6 {[%clk 0:02:50]} 9. c6 {[%clk 0:02:39]}  bxc6 {[%clk 0:02:49]} 10. e4 {[%clk 0:02:36]}  Ndb4 {[%clk 0:02:47]} 11. Nc3 {[%clk 0:02:33]}  Nc5 {[%clk 0:02:41]} 12. Be3 {[%clk 0:02:27]}  Nbd3 {[%clk 0:02:24]} 13. Qc2 {[%clk 0:01:51]}  Rb8 {[%clk 0:02:03]} 14. Rfd1 {[%clk 0:01:31]}  Rxb2 {[%clk 0:01:58]} 15. Qxb2 {[%clk 0:01:14]}  Nxb2 {[%clk 0:01:58]} 16. Rxd8 {[%clk 0:01:14]}  Rxd8 {[%clk 0:01:59]} 17. Bxc5 {[%clk 0:01:14]}  Bxc3 {[%clk 0:01:58]} 18. Bxa7 {[%clk 0:01:02]}  Rd7 {[%clk 0:01:45]} 19. Be3 {[%clk 0:00:59]}  Nc4 {[%clk 0:01:38]} 20. Rc1 {[%clk 0:00:55]}  Nxe3 {[%clk 0:01:35]} 21. fxe3 {[%clk 0:00:54]}  Bb4 {[%clk 0:01:08]} 22. Rxc6 {[%clk 0:00:50]}  Bb7 {[%clk 0:01:05]} 23. Rc4 {[%clk 0:00:44]}  Ba5 {[%clk 0:00:51]} 24. Ne5 {[%clk 0:00:39]}  Rd1+ {[%clk 0:00:45]} 25. Kf2 {[%clk 0:00:36]}  Ba6 {[%clk 0:00:35]} 26. Ra4 {[%clk 0:00:19]}  Be1+ {[%clk 0:00:31]} 27. Kf3 {[%clk 0:00:17]}  Bb5 {[%clk 0:00:27]} 28. Ra8+ {[%clk 0:00:16]}  Kg7 {[%clk 0:00:27]} 29. Bh3 {[%clk 0:00:15]}  Rd2 {[%clk 0:00:25]} 30. Bc8 {[%clk 0:00:12]}  h5 {[%clk 0:00:21]} 31. g4 {[%clk 0:00:04]}  Rf2+ {[%clk 0:00:17]} 32. Kg3 {[%clk 0:00:03]}  Rxa2+ {[%clk 0:00:18]} 0-1


[Site "https://www.chess.com"]

[Event "Titled Tuesday Blitz May 4 2021"]
[White "Maung, Maung Kyaw Zaw Hein"]
[Black "Efremov, Vladislav"]
[WhiteFideId "13001698"]
[BlackFideId "44159935"]
[WhiteElo "1785"]
[BlackElo "2022"]
[Result "1/2-1/2"]
[Round "02"]
[TimeControl "180+1"]
[Date "2021.05.04"]
[WhiteClock "0:01:27"]
[BlackClock "0:00:25"]

1. Nf3 {[%clk 0:02:59]}  Nf6 {[%clk 0:02:58]} 2. c4 {[%clk 0:02:59]}  e6 {[%clk 0:02:57]} 3. Nc3 {[%clk 0:02:59]}  d5 {[%clk 0:02:57]} 4. d4 {[%clk 0:02:59]}  Bb4 {[%clk 0:02:55]} 5. cxd5 {[%clk 0:02:59]}  exd5 {[%clk 0:02:50]} 6. Bg5 {[%clk 0:02:59]}  h6 {[%clk 0:02:49]} 7. Bxf6 {[%clk 0:02:59]}  Qxf6 {[%clk 0:02:48]} 8. e3 {[%clk 0:02:59]}  O-O {[%clk 0:02:46]} 9. Bd3 {[%clk 0:02:59]}  c5 {[%clk 0:02:26]} 10. O-O {[%clk 0:02:57]}  Bxc3 {[%clk 0:02:23]} 11. bxc3 {[%clk 0:02:58]}  c4 {[%clk 0:02:23]} 12. Bc2 {[%clk 0:02:41]}  Bf5 {[%clk 0:02:22]} 13. Nd2 {[%clk 0:02:37]}  Nc6 {[%clk 0:01:49]} 14. e4 {[%clk 0:02:33]}  dxe4 {[%clk 0:01:44]} 15. Bxe4 {[%clk 0:02:21]}  Bxe4 {[%clk 0:01:37]} 16. Nxe4 {[%clk 0:02:20]}  Qg6 {[%clk 0:01:36]} 17. Qf3 {[%clk 0:02:14]}  b5 {[%clk 0:01:24]} 18. Rab1 {[%clk 0:02:12]}  b4 {[%clk 0:01:02]} 19. cxb4 {[%clk 0:01:53]}  Nxd4 {[%clk 0:01:02]} 20. Qe3 {[%clk 0:01:49]}  Rfe8 {[%clk 0:00:30]} 21. Qxd4 {[%clk 0:01:48]}  Qxe4 {[%clk 0:00:27]} 22. Qxe4 {[%clk 0:01:44]}  Rxe4 {[%clk 0:00:28]} 23. Rbc1 {[%clk 0:01:41]}  Rb8 {[%clk 0:00:28]} 24. a3 {[%clk 0:01:41]}  a5 {[%clk 0:00:27]} 25. f3 {[%clk 0:01:33]}  Rd4 {[%clk 0:00:26]} 26. bxa5 {[%clk 0:01:27]}  Ra8 {[%clk 0:00:27]} 27. Rc3 {[%clk 0:01:27]}  Rxa5 {[%clk 0:00:27]} 28. Rfc1 {[%clk 0:01:27]}  Ra4 {[%clk 0:00:25]} 1/2-1/2


[Site "https://www.chess.com"]

[Event "Titled Tuesday Blitz May 4 2021"]
[White "Mayaud, Raphael"]
[Black "Davtyan, David Arm."]
[WhiteFideId "627151"]
[BlackFideId "13310046"]
[WhiteElo "2191"]
[BlackElo "2028"]
[Result "0-1"]
[Round "02"]
[TimeControl "180+1"]
[Date "2021.05.04"]
[WhiteClock "0:00:01"]
[BlackClock "0:00:05"]

1. d4 {[%clk 0:03:00]}  Nf6 {[%clk 0:02:59]} 2. Bg5 {[%clk 0:03:00]}  d5 {[%clk 0:02:58]} 3. Bxf6 {[%clk 0:02:58]}  exf6 {[%clk 0:02:57]} 4. e3 {[%clk 0:02:57]}  Bd6 {[%clk 0:02:56]} 5. g3 {[%clk 0:02:57]}  c6 {[%clk 0:02:56]} 6. Bg2 {[%clk 0:02:57]}  O-O {[%clk 0:02:56]} 7. Ne2 {[%clk 0:02:58]}  f5 {[%clk 0:02:57]} 8. O-O {[%clk 0:02:58]}  Nd7 {[%clk 0:02:57]} 9. Nd2 {[%clk 0:02:58]}  Nf6 {[%clk 0:02:57]} 10. c4 {[%clk 0:02:59]}  dxc4 {[%clk 0:02:57]} 11. Nxc4 {[%clk 0:02:58]}  Bc7 {[%clk 0:02:58]} 12. Nc3 {[%clk 0:02:58]}  Re8 {[%clk 0:02:50]} 13. d5 {[%clk 0:02:30]}  cxd5 {[%clk 0:02:45]} 14. Nxd5 {[%clk 0:02:28]}  Nxd5 {[%clk 0:02:16]} 15. Bxd5 {[%clk 0:02:18]}  Rb8 {[%clk 0:02:10]} 16. Qf3 {[%clk 0:02:12]}  b5 {[%clk 0:02:07]} 17. Na3 {[%clk 0:01:48]}  Qf6 {[%clk 0:01:54]} 18. Rac1 {[%clk 0:01:17]}  Be5 {[%clk 0:01:22]} 19. Bc6 {[%clk 0:01:06]}  Rf8 {[%clk 0:01:15]} 20. Nxb5 {[%clk 0:00:58]}  Bxb2 {[%clk 0:01:10]} 21. Rc2 {[%clk 0:00:47]}  Ba6 {[%clk 0:01:09]} 22. a4 {[%clk 0:00:45]}  Be5 {[%clk 0:00:59]} 23. Rfc1 {[%clk 0:00:43]}  g6 {[%clk 0:00:57]} 24. Kg2 {[%clk 0:00:35]}  Rb6 {[%clk 0:00:52]} 25. Bd5 {[%clk 0:00:34]}  Bxb5 {[%clk 0:00:46]} 26. axb5 {[%clk 0:00:32]}  Rxb5 {[%clk 0:00:47]} 27. Rc6 {[%clk 0:00:32]}  Qe7 {[%clk 0:00:43]} 28. Qe2 {[%clk 0:00:26]}  Rb2 {[%clk 0:00:42]} 29. R1c2 {[%clk 0:00:24]}  Rfb8 {[%clk 0:00:39]} 30. Rc8+ {[%clk 0:00:22]}  Rxc8 {[%clk 0:00:32]} 31. Rxc8+ {[%clk 0:00:19]}  Kg7 {[%clk 0:00:33]} 32. Qc4 {[%clk 0:00:19]}  Bf6 {[%clk 0:00:20]} 33. h4 {[%clk 0:00:19]}  Qxe3 {[%clk 0:00:16]} 34. Qf4 {[%clk 0:00:10]}  Qxf4 {[%clk 0:00:13]} 35. gxf4 {[%clk 0:00:11]}  Rd2 {[%clk 0:00:12]} 36. Bc4 {[%clk 0:00:09]}  Rd7 {[%clk 0:00:11]} 37. Bb3 {[%clk 0:00:08]}  Bxh4 {[%clk 0:00:11]} 38. Ra8 {[%clk 0:00:08]}  Bf6 {[%clk 0:00:10]} 39. Kf3 {[%clk 0:00:08]}  Bd4 {[%clk 0:00:10]} 40. Bc4 {[%clk 0:00:06]}  Bb6 {[%clk 0:00:10]} 41. Ke2 {[%clk 0:00:06]}  h5 {[%clk 0:00:10]} 42. Rc8 {[%clk 0:00:05]}  h4 {[%clk 0:00:10]} 43. Bb3 {[%clk 0:00:03]}  Kf6 {[%clk 0:00:07]} 44. Rc1 {[%clk 0:00:04]}  Rc7 {[%clk 0:00:06]} 45. Rh1 {[%clk 0:00:04]}  g5 {[%clk 0:00:05]} 46. fxg5+ {[%clk 0:00:03]}  Kxg5 {[%clk 0:00:06]} 47. Rg1+ {[%clk 0:00:03]}  Kf6 {[%clk 0:00:06]} 48. Rh1 {[%clk 0:00:02]}  Re7+ {[%clk 0:00:06]} 49. Kf3 {[%clk 0:00:02]}  Re4 {[%clk 0:00:06]} 50. Bc2 {[%clk 0:00:01]}  Rb4 {[%clk 0:00:05]} 51. Rxh4 {[%clk 0:00:01]}  Rxh4 {[%clk 0:00:05]} 0-1


[Site "https://www.chess.com"]

[Event "Titled Tuesday Blitz May 4 2021"]
[White "Mezentsev, Ivan"]
[Black "Winslow, Elliott"]
[WhiteFideId "13706195"]
[BlackFideId "2002523"]
[WhiteElo "2295"]
[BlackElo "2248"]
[Result "1-0"]
[Round "02"]
[TimeControl "180+1"]
[Date "2021.05.04"]
[WhiteClock "0:00:42"]
[BlackClock "0:01:24"]

1. d4 {[%clk 0:03:00]}  Nf6 {[%clk 0:02:59]} 2. Nf3 {[%clk 0:02:56]}  g6 {[%clk 0:02:58]} 3. Bf4 {[%clk 0:02:54]}  Bg7 {[%clk 0:02:57]} 4. e3 {[%clk 0:02:53]}  O-O {[%clk 0:02:55]} 5. h3 {[%clk 0:02:48]}  d6 {[%clk 0:02:52]} 6. Be2 {[%clk 0:02:48]}  c5 {[%clk 0:02:49]} 7. c3 {[%clk 0:02:45]}  b6 {[%clk 0:02:41]} 8. O-O {[%clk 0:02:45]}  Bb7 {[%clk 0:02:40]} 9. a4 {[%clk 0:02:44]}  a6 {[%clk 0:02:39]} 10. Na3 {[%clk 0:02:44]}  Nbd7 {[%clk 0:02:34]} 11. Nd2 {[%clk 0:02:41]}  Qc7 {[%clk 0:02:33]} 12. Bf3 {[%clk 0:02:37]}  e5 {[%clk 0:02:26]} 13. dxe5 {[%clk 0:02:35]}  Nxe5 {[%clk 0:02:23]} 14. Bxe5 {[%clk 0:01:57]}  dxe5 {[%clk 0:02:22]} 15. Bxb7 {[%clk 0:01:44]}  Qxb7 {[%clk 0:02:21]} 16. Ndc4 {[%clk 0:01:43]}  Nd5 {[%clk 0:02:08]} 17. Qf3 {[%clk 0:01:22]}  Rfe8 {[%clk 0:02:08]} 18. Nd6 {[%clk 0:01:22]}  Qc6 {[%clk 0:02:06]} 19. Qxf7+ {[%clk 0:01:12]}  Kh8 {[%clk 0:02:04]} 20. Nxe8 {[%clk 0:01:12]}  Rxe8 {[%clk 0:02:03]} 21. Rfd1 {[%clk 0:01:11]}  Nf6 {[%clk 0:01:55]} 22. Nc4 {[%clk 0:01:10]}  e4 {[%clk 0:01:48]} 23. Nd6 {[%clk 0:01:03]}  Rf8 {[%clk 0:01:45]} 24. Qe6 {[%clk 0:01:01]}  Qc7 {[%clk 0:01:41]} 25. Nxe4 {[%clk 0:00:44]}  Nxe4 {[%clk 0:01:25]} 26. Qxe4 {[%clk 0:00:43]}  b5 {[%clk 0:01:25]} 27. axb5 {[%clk 0:00:43]}  axb5 {[%clk 0:01:24]} 28. Ra8 {[%clk 0:00:42]} 1-0


[Site "https://www.chess.com"]